[Event "Turkish Cup 2024"]
[Site "Denizli"]
[Date "2024.08.01"]
[Round "4"]
[White "Orak, Yunus"]
[Black "Var, Sefa"]
[Result "1/2-1/2"]
[ECO "B96"]
[WhiteElo "1779"]
[BlackElo "1841"]
[Annotator "NA"]
[PlyCount "95"]
[EventDate "2024.08.01"]
[EventType "swiss"]
[EventCountry "TUR"]
[SourceTitle "playchess.com"]
[Source "ChessBase"]
[SourceQuality "1"]
[TimeControl "5400+30"]

1. e4 {[%emt 0:01:00]} c5 {[%emt 0:02:00]} 2. Nf3 {[%emt 0:00:00]} d6 {[%emt 0:02:30]} 3. d4 {[%emt 0:00:00]} cxd4 {[%emt 0:00:30]} 4. Nxd4 {[%emt 0:00:30]} Nf6 {[%emt 0:00:00]} 5. Nc3 {[%emt 0:00:00]} a6 {[%emt 0:00:00]} 6. Bg5 {[%emt 0:00:00]} e6 {[%emt 0:00:30]} 7. f4 {[%emt 0:00:30]} Nbd7 {[%emt 0:00:00]} 8. Qf3 {[%emt 0:02:30]} Qc7 {[%emt 0:03:00]} 9. O-O-O {[%emt 0:01:30]} b5 {[%emt 0:00:30]} 10. e5 {[%emt 0:13:30]} Bb7 {[%emt 0:01:30]} 11. Qg3 {[%emt 0:01:30]} dxe5 {[%emt 0:04:30]} 12. fxe5 {[%emt 0:01:30]} Qxe5 {[%emt 0:23:30]} 13. Bf4 {[%emt 0:35:30]} Qc5 {[%emt 0:03:30]} 14. Bxb5 {[%emt 0:01:30]} axb5 {[%emt 0:03:30]} 15. Ndxb5 {[%emt 0:00:30]} Be7 {[%emt 0:33:57]} 16. Bd6 {[%emt 0:08:30]} Qc6 {[%emt 0:04:28]} 17. Nc7+ {[%emt 0:09:30]} Kf8 {[%emt 0:00:41]} 18. Nxe6+ {[%emt 0:01:30]} fxe6 {[%emt 0:01:14]} 19. Bxe7+ {[%emt 0:00:00]} Kf7 {[%emt 0:00:36]} 20. Rd2 {[%emt 0:07:56]} Rhe8 {[%emt 0:00:42]} 21. Bxf6 {[%emt 0:02:57]} Nxf6 {[%emt 0:00:37]} 22. Rf1 {[%emt 0:00:08]} Rad8 {[%emt 0:09:45]} 23. Rdf2 {[%emt 0:00:52]} e5 {[%emt 0:01:17]} 24. Qh4 {[%emt 0:01:31]} Kg8 {[%emt 0:01:17]} 25. g4 {[%emt 0:03:07]} Ne4 {[%emt 0:00:16]} 26. Nxe4 {[%emt 0:03:54]} Qxe4 {[%emt 0:00:30]} 27. Rf7 {[%emt 0:00:30]} Bd5 {[%emt 0:02:00]} 28. Rc7 {[%emt 0:01:41]} Bxa2 {[%emt 0:00:44]} 29. Qg5 {[%emt 0:01:04]} Qg6 {[%emt 0:00:43]} 30. Qxg6 {[%emt 0:00:44]} hxg6 {[%emt 0:00:30]} 31. b3 {[%emt 0:00:30]} e4 {[%emt 0:00:30]} 32. Re1 {[%emt 0:00:30]} e3 {[%emt 0:00:30]} 33. Re2 {[%emt 0:00:00]} Rd4 {[%emt 0:00:35]} 34. Rc3 {[%emt 0:00:28]} Rxg4 {[%emt 0:00:27]} 35. Rcxe3 {[%emt 0:00:59]} Rxe3 {[%emt 0:00:56]} 36. Rxe3 {[%emt 0:00:30]} Rg2 {[%emt 0:00:00]} 37. h3 {[%emt 0:00:00]} g5 {[%emt 0:00:46]} 38. Kb2 {[%emt 0:00:00]} g4 {[%emt 0:00:12]} 39. hxg4 {[%emt 0:00:29]} Bxb3 {[%emt 0:00:04]} 40. Kxb3 {[%emt 0:01:09]} Rxg4 {[%emt 0:00:01]} 41. c4 {[%emt 0:00:22]} Rg1 {[%emt 0:00:47]} 42. c5 {[%emt 0:00:01]} Rc1 {[%emt 0:01:05]} 43. Kb4 {[%emt 0:00:33]} Kf7 {[%emt 0:00:14]} 44. Kb5 {[%emt 0:00:30]} g5 {[%emt 0:00:07]} 45. c6 {[%emt 0:00:18]} Kf6 {[%emt 0:00:05]} 46. Kb6 {[%emt 0:00:00]} Kf5 {[%emt 0:00:37]} 47. c7 {[%emt 0:00:15]} g4 {[%emt 0:00:35]} 48. Re1 {[%emt 0:00:30]} 1/2-1/2

[Event "Turkish Cup 2024"]
[Site "Denizli"]
[Date "2024.08.01"]
[Round "4"]
[White "Turk, Talha Gunes"]
[Black "Turkmen, Ataberk"]
[Result "0-1"]
[ECO "B08"]
[WhiteElo "1776"]
[BlackElo "2022"]
[Annotator "RC"]
[PlyCount "84"]
[EventDate "2024.08.01"]
[EventType "swiss"]
[EventCountry "TUR"]
[SourceTitle "playchess.com"]
[Source "ChessBase"]
[SourceQuality "1"]
[TimeControl "5400+30"]

1. e4 {[%emt 0:01:00]} g6 {[%emt 0:01:00]} 2. d4 {[%emt 0:00:30]} Bg7 {[%emt 0:00:30]} 3. Nc3 {[%emt 0:00:30]} d6 {[%emt 0:00:00]} 4. Bc4 {[%emt 0:09:30]} c6 {[%emt 0:00:00]} 5. Nf3 {[%emt 0:01:30]} Nf6 {[%emt 0:07:30]} 6. e5 {[%emt 0:15:30]} dxe5 {[%emt 0:03:30]} 7. Nxe5 {[%emt 0:01:30]} O-O {[%emt 0:00:30]} 8. O-O {[%emt 0:01:30]} Nbd7 {[%emt 0:00:30]} 9. h3 {[%emt 0:24:30]} Nb6 {[%emt 0:04:30]} 10. Bb3 {[%emt 0:00:30]} Nbd5 {[%emt 0:01:30]} 11. f4 {[%emt 0:11:30]} Be6 {[%emt 0:13:30]} 12. Na4 {[%emt 0:07:30]} Nd7 {[%emt 0:09:30]} 13. g4 {[%emt 0:02:28]} Nxe5 {[%emt 0:05:30]} 14. fxe5 {[%emt 0:00:26]} Nc7 {[%emt 0:04:30]} 15. Be3 {[%emt 0:04:44]} f6 {[%emt 0:07:30]} 16. Bxe6+ {[%emt 0:03:58]} Nxe6 {[%emt 0:00:30]} 17. exf6 {[%emt 0:00:00]} Bxf6 {[%emt 0:03:30]} 18. c3 {[%emt 0:00:00]} Qd6 {[%emt 0:03:30]} 19. Rf3 {[%emt 0:01:35]} Bh4 {[%emt 0:17:22]} 20. Qe2 {[%emt 0:06:14]} Rxf3 {[%emt 0:02:34]} 21. Qxf3 {[%emt 0:00:05]} Rf8 {[%emt 0:00:00]} 22. Qg2 {[%emt 0:00:02]} b5 {[%emt 0:01:51]} 23. Nc5 {[%emt 0:03:34]} Nxc5 {[%emt 0:00:05]} 24. dxc5 {[%emt 0:00:12]} Qd3 {[%emt 0:00:17]} 25. Bh6 {[%emt 0:03:04]} Rf2 {[%emt 0:01:30]} 26. Qxf2 {[%emt 0:00:30]} Bxf2+ {[%emt 0:00:30]} 27. Kxf2 {[%emt 0:00:13]} Qxh3 {[%emt 0:00:00]} 28. Be3 {[%emt 0:01:16]} Qxg4 {[%emt 0:00:00]} 29. Rf1 {[%emt 0:00:31]} Qe4 {[%emt 0:01:51]} 30. Rd1 {[%emt 0:00:26]} g5 {[%emt 0:00:34]} 31. Rd4 {[%emt 0:00:35]} Qf5+ {[%emt 0:00:10]} 32. Kg2 {[%emt 0:00:32]} h5 {[%emt 0:00:07]} 33. a4 {[%emt 0:00:54]} bxa4 {[%emt 0:00:13]} 34. Bf2 {[%emt 0:00:00]} g4 {[%emt 0:00:18]} 35. Rd8+ {[%emt 0:01:03]} Kf7 {[%emt 0:00:15]} 36. Rd2 {[%emt 0:00:33]} Qf3+ {[%emt 0:00:30]} 37. Kg1 {[%emt 0:00:00]} g3 {[%emt 0:00:22]} 38. Bxg3 {[%emt 0:00:42]} Qxg3+ {[%emt 0:00:30]} 39. Rg2 {[%emt 0:00:00]} Qxg2+ {[%emt 0:00:13]} 40. Kxg2 {[%emt 0:00:23]} e5 {[%emt 0:00:30]} 41. Kf3 {[%emt 0:00:00]} Ke6 {[%emt 0:00:00]} 42. c4 {[%emt 0:00:08]} Kf5 {[%emt 0:00:00]} 0-1

[Event "Turkish Cup 2024"]
[Site "Denizli"]
[Date "2024.08.01"]
[Round "4"]
[White "Er, Mira"]
[Black "Kavri, Yusuf Eren"]
[Result "1/2-1/2"]
[ECO "B57"]
[WhiteElo "1770"]
[BlackElo "2090"]
[Annotator "ChessBase"]
[PlyCount "147"]
[EventDate "2024.08.01"]
[EventType "swiss"]
[EventCountry "TUR"]
[SourceTitle "playchess.com"]
[Source "ChessBase"]
[SourceQuality "1"]
[TimeControl "5400+30"]

1. e4 {[%emt 0:01:00]} c5 {[%emt 0:01:00]} 2. Nf3 {[%emt 0:00:30]} d6 {[%emt 0:00:00]} 3. d4 {[%emt 0:00:00]} cxd4 {[%emt 0:00:00]} 4. Nxd4 {[%emt 0:00:00]} Nf6 {[%emt 0:00:30]} 5. Nc3 {[%emt 0:00:00]} Nc6 {[%emt 0:00:00]} 6. Bc4 {[%emt 0:00:00]} Qb6 {[%emt 0:00:00]} 7. Nb3 {[%emt 0:00:30]} e6 {[%emt 0:00:00]} 8. Bf4 {[%emt 0:00:00]} Ne5 {[%emt 0:00:00]} 9. Be2 {[%emt 0:00:00]} Bd7 {[%emt 0:00:00]} 10. O-O {[%emt 0:05:30]} a6 {[%emt 0:06:00]} 11. a4 {[%emt 0:04:30]} Be7 {[%emt 0:02:30]} 12. Be3 {[%emt 0:04:30]} Qc7 {[%emt 0:02:30]} 13. Nd2 {[%emt 0:13:30]} Bc6 {[%emt 0:13:30]} 14. f4 {[%emt 0:06:30]} Ned7 {[%emt 0:00:30]} 15. Bf3 {[%emt 0:01:30]} b6 {[%emt 0:08:30]} 16. Nb3 {[%emt 0:00:30]} O-O {[%emt 0:07:30]} 17. g4 {[%emt 0:02:30]} Qb7 {[%emt 0:05:30]} 18. Qd4 {[%emt 0:23:30]} e5 {[%emt 0:11:30]} 19. Qd3 {[%emt 0:00:30]} exf4 {[%emt 0:01:30]} 20. Bxf4 {[%emt 0:01:30]} Ne5 {[%emt 0:00:00]} 21. Bxe5 {[%emt 0:00:30]} dxe5 {[%emt 0:00:00]} 22. Nd5 {[%emt 0:02:30]} Rfd8 {[%emt 0:05:30]} 23. c4 {[%emt 0:02:30]} Ne8 {[%emt 0:03:30]} 24. Qc3 {[%emt 0:02:30]} Bd6 {[%emt 0:01:30]} 25. Kh1 {[%emt 0:02:30]} Nc7 {[%emt 0:01:30]} 26. c5 {[%emt 0:08:17]} Bxc5 {[%emt 0:08:30]} 27. Nxc5 {[%emt 0:00:30]} bxc5 {[%emt 0:00:00]} 28. Nxc7 {[%emt 0:00:05]} Qxc7 {[%emt 0:01:00]} 29. Qxc5 {[%emt 0:01:27]} Qb7 {[%emt 0:04:52]} 30. Rae1 {[%emt 0:01:06]} Bxa4 {[%emt 0:01:34]} 31. Qxe5 {[%emt 0:00:13]} Re8 {[%emt 0:00:24]} 32. Qf4 {[%emt 0:00:41]} Bc6 {[%emt 0:00:25]} 33. e5 {[%emt 0:01:02]} Re7 {[%emt 0:01:59]} 34. Bxc6 {[%emt 0:01:27]} Qxc6+ {[%emt 0:00:01]} 35. Qe4 {[%emt 0:00:35]} Rc8 {[%emt 0:01:01]} 36. Qxc6 {[%emt 0:01:57]} Rxc6 {[%emt 0:00:01]} 37. Rc1 {[%emt 0:00:09]} Rec7 {[%emt 0:03:09]} 38. Rxc6 {[%emt 0:00:26]} Rxc6 {[%emt 0:00:30]} 39. Rd1 {[%emt 0:00:30]} g6 {[%emt 0:00:30]} 40. Rd2 {[%emt 0:00:30]} Re6 {[%emt 0:01:01]} 41. Rd8+ {[%emt 0:00:46]} Kg7 {[%emt 0:00:06]} 42. Rd5 {[%emt 0:00:31]} Rb6 {[%emt 0:00:08]} 43. Ra5 {[%emt 0:00:00]} Kf8 {[%emt 0:00:19]} 44. h3 {[%emt 0:01:53]} Ke7 {[%emt 0:00:06]} 45. b4 {[%emt 0:00:22]} Ke6 {[%emt 0:00:27]} 46. Kg2 {[%emt 0:00:29]} Rxb4 {[%emt 0:01:46]} 47. Rxa6+ {[%emt 0:00:30]} Kxe5 {[%emt 0:00:00]} 48. Ra7 {[%emt 0:00:42]} Kf6 {[%emt 0:00:29]} 49. Ra5 {[%emt 0:00:11]} h6 {[%emt 0:02:40]} 50. Rc5 {[%emt 0:00:51]} Rb2+ {[%emt 0:00:46]} 51. Kg3 {[%emt 0:00:18]} Rb3+ {[%emt 0:00:04]} 52. Kg2 {[%emt 0:00:30]} Re3 {[%emt 0:00:00]} 53. Ra5 {[%emt 0:00:42]} Re5 {[%emt 0:01:03]} 54. Ra3 {[%emt 0:01:10]} Re7 {[%emt 0:04:39]} 55. Kg3 {[%emt 0:01:02]} Rb7 {[%emt 0:00:00]} 56. Rc3 {[%emt 0:01:09]} Rb6 {[%emt 0:00:50]} 57. Rf3+ {[%emt 0:00:46]} Kg7 {[%emt 0:00:10]} 58. Rc3 {[%emt 0:00:00]} Rb5 {[%emt 0:02:00]} 59. Ra3 {[%emt 0:00:36]} h5 {[%emt 0:00:01]} 60. Rc3 {[%emt 0:00:37]} Kh6 {[%emt 0:00:37]} 61. Ra3 {[%emt 0:01:12]} f6 {[%emt 0:01:46]} 62. Rf3 {[%emt 0:00:57]} Rb6 {[%emt 0:00:45]} 63. Rc3 {[%emt 0:00:32]} Re6 {[%emt 0:00:14]} 64. Ra3 {[%emt 0:01:19]} Kg5 {[%emt 0:00:39]} 65. Ra5+ {[%emt 0:00:37]} Re5 {[%emt 0:00:11]} 66. h4+ {[%emt 0:00:44]} Kh6 {[%emt 0:00:11]} 67. g5+ {[%emt 0:00:00]} Kg7 {[%emt 0:00:45]} 68. Ra7+ {[%emt 0:00:00]} Kf8 {[%emt 0:00:00]} 69. gxf6 {[%emt 0:01:06]} Rf5 {[%emt 0:00:00]} 70. Ra8+ {[%emt 0:00:23]} Kf7 {[%emt 0:00:27]} 71. Ra7+ {[%emt 0:00:30]} Kxf6 {[%emt 0:00:00]} 72. Ra6+ {[%emt 0:00:00]} Kg7 {[%emt 0:00:33]} 73. Ra7+ {[%emt 0:00:00]} Rf7 {[%emt 0:00:00]} 74. Ra6 {[%emt 0:00:00]} 1/2-1/2

[Event "Turkish Cup 2024"]
[Site "Denizli"]
[Date "2024.08.01"]
[Round "4"]
[White "Uysal, Kerem"]
[Black "Saricam, Ege"]
[Result "0-1"]
[ECO "A05"]
[WhiteElo "1740"]
[BlackElo "1794"]
[Annotator "NA"]
[PlyCount "120"]
[EventDate "2024.08.01"]
[EventType "swiss"]
[EventCountry "TUR"]
[SourceTitle "playchess.com"]
[Source "ChessBase"]
[SourceQuality "1"]
[TimeControl "5400+30"]

1. Nf3 {[%emt 0:03:00]} Nf6 {[%emt 0:01:00]} 2. c4 {[%emt 0:00:00]} g6 {[%emt 0:00:30]} 3. b4 {[%emt 0:00:00]} d6 {[%emt 0:00:00]} 4. Bb2 {[%emt 0:00:30]} Bg7 {[%emt 0:00:00]} 5. g3 {[%emt 0:00:30]} O-O {[%emt 0:00:00]} 6. Bg2 {[%emt 0:00:30]} e5 {[%emt 0:00:00]} 7. d3 {[%emt 0:00:30]} Nc6 {[%emt 0:00:30]} 8. b5 {[%emt 0:00:30]} Ne7 {[%emt 0:00:30]} 9. O-O {[%emt 0:01:30]} Rb8 {[%emt 0:00:30]} 10. Nc3 {[%emt 0:04:30]} c6 {[%emt 0:00:30]} 11. a4 {[%emt 0:04:30]} Qc7 {[%emt 0:00:30]} 12. Qb3 {[%emt 0:07:30]} Nd7 {[%emt 0:03:30]} 13. Ba3 {[%emt 0:08:30]} Nc5 {[%emt 0:02:30]} 14. Qc2 {[%emt 0:03:30]} Bg4 {[%emt 0:06:30]} 15. Ne4 {[%emt 0:05:30]} Rbc8 {[%emt 0:10:30]} 16. Nxc5 {[%emt 0:05:30]} dxc5 {[%emt 0:00:00]} 17. Rad1 {[%emt 0:02:30]} b6 {[%emt 0:01:00]} 18. h3 {[%emt 0:00:30]} Bd7 {[%emt 0:01:30]} 19. e3 {[%emt 0:02:30]} Rfe8 {[%emt 0:03:30]} 20. d4 {[%emt 0:04:30]} cxd4 {[%emt 0:01:30]} 21. exd4 {[%emt 0:01:30]} cxb5 {[%emt 0:00:30]} 22. dxe5 {[%emt 0:05:30]} Bf5 {[%emt 0:02:30]} 23. Qd2 {[%emt 0:02:30]} bxc4 {[%emt 0:01:30]} 24. Bd6 {[%emt 0:00:30]} Qd7 {[%emt 0:00:30]} 25. Qf4 {[%emt 0:02:30]} Bd3 {[%emt 0:01:30]} 26. Rfe1 {[%emt 0:01:30]} Nf5 {[%emt 0:01:30]} 27. Ba3 {[%emt 0:01:30]} Bh6 {[%emt 0:04:30]} 28. Ng5 {[%emt 0:02:30]} Qd4 {[%emt 0:06:30]} 29. Qxd4 {[%emt 0:08:30]} Nxd4 {[%emt 0:00:30]} 30. Ne4 {[%emt 0:02:30]} Ne2+ {[%emt 0:02:30]} 31. Kh2 {[%emt 0:00:00]} Bxe4 {[%emt 0:00:00]} 32. Bxe4 {[%emt 0:01:00]} Nc3 {[%emt 0:00:00]} 33. Rd4 {[%emt 0:03:37]} Rxe5 {[%emt 0:01:30]} 34. f4 {[%emt 0:00:05]} Ree8 {[%emt 0:00:30]} 35. Bb4 {[%emt 0:00:46]} Bg7 {[%emt 0:01:30]} 36. Bxc3 {[%emt 0:00:30]} Bxd4 {[%emt 0:00:00]} 37. Bxd4 {[%emt 0:00:12]} c3 {[%emt 0:00:00]} 38. Be5 {[%emt 0:00:00]} c2 {[%emt 0:01:30]} 39. Rc1 {[%emt 0:00:01]} f6 {[%emt 0:00:00]} 40. Bd5+ {[%emt 0:01:31]} Kg7 {[%emt 0:00:00]} 41. Bb2 {[%emt 0:00:44]} Re2+ {[%emt 0:00:30]} 42. Kg1 {[%emt 0:00:14]} Rd8 {[%emt 0:00:00]} 43. Kf1 {[%emt 0:00:11]} Rd2 {[%emt 0:03:00]} 44. Be4 {[%emt 0:07:30]} Rd1+ {[%emt 0:00:30]} 45. Ke2 {[%emt 0:00:00]} Rxc1 {[%emt 0:00:00]} 46. Bxc1 {[%emt 0:00:11]} Rd1 {[%emt 0:00:00]} 47. Be3 {[%emt 0:00:29]} c1=Q {[%emt 0:00:00]} 48. Bxc1 {[%emt 0:00:30]} Rxc1 {[%emt 0:00:00]} 49. Kd3 {[%emt 0:02:43]} Ra1 {[%emt 0:00:00]} 50. Bc6 {[%emt 0:00:20]} Ra3+ {[%emt 0:00:00]} 51. Kc4 {[%emt 0:00:30]} Rxg3 {[%emt 0:00:30]} 52. Kb5 {[%emt 0:00:30]} Rxh3 {[%emt 0:00:00]} 53. Ka6 {[%emt 0:00:00]} Rb3 {[%emt 0:00:00]} 54. Kxa7 {[%emt 0:00:00]} h5 {[%emt 0:00:00]} 55. Bb5 {[%emt 0:01:58]} h4 {[%emt 0:00:00]} 56. Kxb6 {[%emt 0:00:30]} h3 {[%emt 0:00:00]} 57. a5 {[%emt 0:00:00]} h2 {[%emt 0:00:00]} 58. a6 {[%emt 0:00:12]} h1=Q {[%emt 0:00:30]} 59. a7 {[%emt 0:00:00]} Qd5 {[%emt 0:00:30]} 60. f5 {[%emt 0:00:00]} Rxb5+ {[%emt 0:00:00]} 0-1

[Event "Turkish Cup 2024"]
[Site "Denizli"]
[Date "2024.08.01"]
[Round "4"]
[White "Acar, Erdogan"]
[Black "Tutuncu, Ali"]
[Result "0-1"]
[ECO "B06"]
[WhiteElo "1726"]
[BlackElo "2041"]
[Annotator "RC"]
[PlyCount "74"]
[EventDate "2024.08.01"]
[EventType "swiss"]
[EventCountry "TUR"]
[SourceTitle "playchess.com"]
[Source "ChessBase"]
[SourceQuality "1"]
[TimeControl "5400+30"]

1. e4 {[%emt 0:01:00]} g6 {[%emt 0:01:00]} 2. d4 {[%emt 0:00:30]} Bg7 {[%emt 0:00:00]} 3. Nc3 {[%emt 0:00:30]} d6 {[%emt 0:00:00]} 4. f4 {[%emt 0:00:30]} a6 {[%emt 0:00:00]} 5. Nf3 {[%emt 0:00:00]} b5 {[%emt 0:00:00]} 6. Bd3 {[%emt 0:00:00]} Nd7 {[%emt 0:00:00]} 7. a4 {[%emt 0:01:30]} b4 {[%emt 0:00:00]} 8. Ne2 {[%emt 0:00:30]} c5 {[%emt 0:01:30]} 9. c3 {[%emt 0:00:30]} Bb7 {[%emt 0:00:30]} 10. O-O {[%emt 0:07:30]} Qb6 {[%emt 0:02:30]} 11. a5 {[%emt 0:04:30]} Qa7 {[%emt 0:00:30]} 12. cxb4 {[%emt 0:04:30]} cxd4 {[%emt 0:01:30]} 13. Kh1 {[%emt 0:01:30]} Nh6 {[%emt 0:05:30]} 14. h3 {[%emt 0:08:30]} O-O {[%emt 0:00:00]} 15. Qe1 {[%emt 0:04:30]} f5 {[%emt 0:08:00]} 16. exf5 {[%emt 0:17:30]} Nxf5 {[%emt 0:00:30]} 17. Ng5 {[%emt 0:08:30]} Bd5 {[%emt 0:03:30]} 18. Ng3 {[%emt 0:13:30]} e6 {[%emt 0:15:30]} 19. Be4 {[%emt 0:07:02]} Bxe4 {[%emt 0:01:30]} 20. N3xe4 {[%emt 0:00:41]} h6 {[%emt 0:00:30]} 21. Nf3 {[%emt 0:02:36]} Rae8 {[%emt 0:04:30]} 22. g4 {[%emt 0:03:11]} d5 {[%emt 0:00:30]} 23. Nc5 {[%emt 0:02:20]} Nd6 {[%emt 0:06:30]} 24. Nxd7 {[%emt 0:04:26]} Qxd7 {[%emt 0:00:30]} 25. Ne5 {[%emt 0:02:29]} Bxe5 {[%emt 0:00:30]} 26. Qxe5 {[%emt 0:01:09]} Ne4 {[%emt 0:00:30]} 27. Kg1 {[%emt 0:02:11]} Qa7 {[%emt 0:01:30]} 28. b3 {[%emt 0:00:53]} d3+ {[%emt 0:05:30]} 29. Kg2 {[%emt 0:00:33]} Kh7 {[%emt 0:03:30]} 30. Bb2 {[%emt 0:01:13]} Rc8 {[%emt 0:00:00]} 31. Bd4 {[%emt 0:00:31]} Rc2+ {[%emt 0:01:00]} 32. Kg1 {[%emt 0:00:33]} Qc7 {[%emt 0:00:00]} 33. Qxe6 {[%emt 0:00:58]} Ng3 {[%emt 0:00:00]} 34. Rae1 {[%emt 0:00:42]} Ne2+ {[%emt 0:01:30]} 35. Rxe2 {[%emt 0:00:03]} dxe2 {[%emt 0:00:30]} 36. Re1 {[%emt 0:00:03]} Qxf4 {[%emt 0:00:00]} 37. Qe7+ {[%emt 0:01:29]} Rf7 {[%emt 0:00:00]} 0-1

[Event "Turkish Cup 2024"]
[Site "Denizli"]
[Date "2024.08.01"]
[Round "4"]
[White "Yilmaz, Atakan"]
[Black "Cakir, Ege"]
[Result "0-1"]
[ECO "B40"]
[WhiteElo "1715"]
[BlackElo "1889"]
[Annotator "NA"]
[PlyCount "118"]
[EventDate "2024.08.01"]
[EventType "swiss"]
[EventCountry "TUR"]
[SourceTitle "playchess.com"]
[Source "ChessBase"]
[SourceQuality "1"]
[TimeControl "5400+30"]

1. e4 {[%emt 0:01:00]} c5 {[%emt 0:04:00]} 2. Nf3 {[%emt 0:00:00]} e6 {[%emt 0:00:00]} 3. d4 {[%emt 0:00:00]} cxd4 {[%emt 0:00:00]} 4. Nxd4 {[%emt 0:00:30]} Nf6 {[%emt 0:00:30]} 5. Nc3 {[%emt 0:00:30]} Nc6 {[%emt 0:00:30]} 6. Nxc6 {[%emt 0:00:00]} bxc6 {[%emt 0:00:00]} 7. Bd3 {[%emt 0:00:00]} d5 {[%emt 0:00:00]} 8. O-O {[%emt 0:00:00]} Be7 {[%emt 0:01:30]} 9. Bf4 {[%emt 0:00:00]} O-O {[%emt 0:00:30]} 10. Qf3 {[%emt 0:00:30]} Qb6 {[%emt 0:03:30]} 11. exd5 {[%emt 0:03:30]} cxd5 {[%emt 0:01:30]} 12. Rfe1 {[%emt 0:06:30]} Ba6 {[%emt 0:06:30]} 13. Bxa6 {[%emt 0:11:30]} Qxa6 {[%emt 0:00:30]} 14. a4 {[%emt 0:00:30]} Rac8 {[%emt 0:05:30]} 15. Qe2 {[%emt 0:03:30]} Qc4 {[%emt 0:10:30]} 16. Qxc4 {[%emt 0:07:30]} Rxc4 {[%emt 0:00:30]} 17. g3 {[%emt 0:13:30]} Bb4 {[%emt 0:04:30]} 18. Re2 {[%emt 0:06:30]} Bxc3 {[%emt 0:02:30]} 19. bxc3 {[%emt 0:00:00]} Ne4 {[%emt 0:00:00]} 20. Be5 {[%emt 0:02:00]} Nxc3 {[%emt 0:07:00]} 21. Bxc3 {[%emt 0:00:30]} Rxc3 {[%emt 0:00:00]} 22. Kf1 {[%emt 0:02:30]} Rfc8 {[%emt 0:00:00]} 23. Ke1 {[%emt 0:06:30]} g6 {[%emt 0:01:30]} 24. Kd1 {[%emt 0:00:30]} Rb8 {[%emt 0:01:30]} 25. Re3 {[%emt 0:01:30]} Rc4 {[%emt 0:02:30]} 26. Rb3 {[%emt 0:00:30]} Rxb3 {[%emt 0:03:30]} 27. cxb3 {[%emt 0:00:30]} Rc3 {[%emt 0:00:00]} 28. Rb1 {[%emt 0:00:30]} Kf8 {[%emt 0:00:00]} 29. Kd2 {[%emt 0:00:30]} d4 {[%emt 0:00:30]} 30. b4 {[%emt 0:01:30]} Ra3 {[%emt 0:06:30]} 31. a5 {[%emt 0:00:00]} Ke7 {[%emt 0:03:30]} 32. Rc1 {[%emt 0:01:00]} Kd7 {[%emt 0:01:30]} 33. Rc4 {[%emt 0:02:30]} e5 {[%emt 0:00:30]} 34. Rc5 {[%emt 0:00:30]} Kd6 {[%emt 0:02:30]} 35. Rb5 {[%emt 0:00:30]} e4 {[%emt 0:00:30]} 36. Rb7 {[%emt 0:02:30]} Ra2+ {[%emt 0:11:30]} 37. Ke1 {[%emt 0:02:30]} f5 {[%emt 0:01:30]} 38. Rxa7 {[%emt 0:00:30]} d3 {[%emt 0:00:30]} 39. h4 {[%emt 0:08:15]} Re2+ {[%emt 0:00:30]} 40. Kf1 {[%emt 0:01:50]} Rb2 {[%emt 0:00:30]} 41. Ke1 {[%emt 0:00:07]} Rxb4 {[%emt 0:01:30]} 42. Rxh7 {[%emt 0:00:07]} Rb1+ {[%emt 0:00:30]} 43. Kd2 {[%emt 0:00:01]} Rb2+ {[%emt 0:00:00]} 44. Ke1 {[%emt 0:00:38]} Re2+ {[%emt 0:03:36]} 45. Kf1 {[%emt 0:00:07]} Ra2 {[%emt 0:00:25]} 46. Ke1 {[%emt 0:00:17]} Rxa5 {[%emt 0:03:54]} 47. Rg7 {[%emt 0:00:08]} Ra1+ {[%emt 0:00:19]} 48. Kd2 {[%emt 0:00:30]} Rf1 {[%emt 0:00:00]} 49. Rxg6+ {[%emt 0:01:24]} Kd5 {[%emt 0:02:25]} 50. Rg8 {[%emt 0:01:24]} Rxf2+ {[%emt 0:00:06]} 51. Ke3 {[%emt 0:01:12]} Rf3+ {[%emt 0:02:14]} 52. Kd2 {[%emt 0:00:02]} Kd4 {[%emt 0:00:00]} 53. Rd8+ {[%emt 0:00:30]} Ke5 {[%emt 0:00:00]} 54. Re8+ {[%emt 0:00:19]} Kf6 {[%emt 0:00:02]} 55. Rg8 {[%emt 0:00:34]} Rf2+ {[%emt 0:00:07]} 56. Ke1 {[%emt 0:01:13]} e3 {[%emt 0:00:18]} 57. Rd8 {[%emt 0:00:34]} d2+ {[%emt 0:00:30]} 58. Kd1 {[%emt 0:00:30]} Rf1+ {[%emt 0:00:00]} 59. Kc2 {[%emt 0:00:14]} Rc1+ {[%emt 0:00:00]} 0-1

[Event "Turkish Cup 2024"]
[Site "Denizli"]
[Date "2024.08.02"]
[Round "5"]
[White "Maruflu, Enes Yusuf"]
[Black "Er, Mira"]
[Result "1-0"]
[ECO "B51"]
[WhiteElo "2228"]
[BlackElo "1770"]
[Annotator "RC"]
[PlyCount "67"]
[EventDate "2024.08.01"]
[EventType "swiss"]
[EventCountry "TUR"]
[SourceTitle "playchess.com"]
[Source "ChessBase"]
[SourceQuality "1"]
[TimeControl "5400+30"]

1. e4 {[%emt 0:04:00]} c5 {[%emt 0:01:00]} 2. Nf3 {[%emt 0:00:30]} Nc6 {[%emt 0:00:00]} 3. Bb5 {[%emt 0:01:30]} d6 {[%emt 0:00:00]} 4. O-O {[%emt 0:00:30]} Bd7 {[%emt 0:00:00]} 5. Re1 {[%emt 0:00:00]} a6 {[%emt 0:01:00]} 6. Bf1 {[%emt 0:00:00]} Bg4 {[%emt 0:00:00]} 7. c3 {[%emt 0:00:00]} Nf6 {[%emt 0:01:00]} 8. d4 {[%emt 0:00:00]} cxd4 {[%emt 0:00:30]} 9. cxd4 {[%emt 0:00:00]} e5 {[%emt 0:00:30]} 10. d5 {[%emt 0:00:00]} Nd4 {[%emt 0:01:30]} 11. Be3 {[%emt 0:00:00]} Nxf3+ {[%emt 0:01:30]} 12. gxf3 {[%emt 0:00:00]} Bh5 {[%emt 0:01:30]} 13. Nd2 {[%emt 0:00:30]} g5 {[%emt 0:06:30]} 14. Qb3 {[%emt 0:00:30]} Qd7 {[%emt 0:06:30]} 15. Rac1 {[%emt 0:01:30]} Rg8 {[%emt 0:02:30]} 16. Bg2 {[%emt 0:02:30]} Bh6 {[%emt 0:05:30]} 17. Nc4 {[%emt 0:20:30]} g4 {[%emt 0:22:30]} 18. f4 {[%emt 0:05:30]} exf4 {[%emt 0:03:30]} 19. Bd2 {[%emt 0:07:30]} g3 {[%emt 0:07:30]} 20. fxg3 {[%emt 0:03:30]} b5 {[%emt 0:03:30]} 21. e5 {[%emt 0:01:30]} Qa7+ {[%emt 0:01:30]} 22. Kh1 {[%emt 0:01:30]} Ng4 {[%emt 0:02:30]} 23. Nxd6+ {[%emt 0:02:30]} Kf8 {[%emt 0:00:30]} 24. Ne4 {[%emt 0:01:30]} a5 {[%emt 0:05:30]} 25. Rf1 {[%emt 0:05:30]} Nxh2 {[%emt 0:06:37]} 26. Bxf4 {[%emt 0:02:30]} Bxf4 {[%emt 0:01:03]} 27. Rxf4 {[%emt 0:00:00]} Ng4 {[%emt 0:00:01]} 28. Nc5 {[%emt 0:01:00]} Rc8 {[%emt 0:01:13]} 29. Ne6+ {[%emt 0:03:30]} Ke7 {[%emt 0:00:30]} 30. d6+ {[%emt 0:00:30]} Kd7 {[%emt 0:00:30]} 31. Qxb5+ {[%emt 0:00:30]} Kxe6 {[%emt 0:00:30]} 32. Bd5+ {[%emt 0:00:30]} Kxe5 {[%emt 0:00:00]} 33. Bxf7+ {[%emt 0:06:30]} Kxd6 {[%emt 0:00:06]} 34. Qd5+ {[%emt 0:00:30]} 1-0